[Event "85th Tata Steel Masters 2023"]
[White "Carlsen,Magnus"]
[Black "Abdusattorov,Nodirbek"]
[Site "Wijk aan Zee"]
[Round "5.1"]
[Annotator "TA"]
[Result "0-1"]
[Date "2023.01.19"]
[WhiteElo "2859"]
[BlackElo "2713"]
[PlyCount "120"]
[TimeControl "60"]

{[%evp 9,120,23,22,0,2,3,23,9,12,18,27,41,16,26,20,13,14,6,14,-16,-16,-22,-35,-18,0,0,0,-25,-22,-64,-75,-72,-66,-90,-35,-56,-21,-56,-49,-64,-29,-47,-13,-23,-19,-11,-11,-39,-23,-16,-28,-66,-51,-36,-20,-24,-46,-60,-54,-55,-67,-65,-47,-64,-104,-104,-104,-114,-114,-94,-36,-43,0,0,0,-50,-50,-102,-108,-131,-163,-240,-240,-240,-240,-240,-247,-277,-247,-277,-277,-291,-247,-5081,-411,-12799,-12575,-12539,-12529,-29949,-29949,-29963,-29968,-29968,-29960,-29970,-29967,-29963,-29964,-29959,-29954,-29985,-29986]} 1. c4 {[%emt 0:0:9]} c5 {[%emt 0:0:18]} 2. Nf3 {[%emt 0:0:21]} Nf6 {[%emt 0:0:16]} 3. Nc3 {[%emt 0:0:16]} Nc6 {[%emt 0:0:20]} 4. e3 {[%emt 0:0:47]} e5 {[%emt 0:0:52]} 5. Be2 {[%emt 0:3:24]} d5 {[%emt 0:3:41]} 6. cxd5 {[%emt 0:0:11] A34: Symmetrical English: 2 Nc3, lines with ...d5.} Nxd5 {[%emt 0:0:4]} 7. O-O {[%emt 0:1:24]} Be7 {[%emt 0:2:43]} 8. Bb5 {[%emt 0:9:7] White has an edge.} Nxc3 {[%emt 0:14:19]} 9. bxc3 {[%emt 0:1:2]} Qc7 {[%emt 0:7:47]} 10. d4 {[%emt 0:6:22]} cxd4 {[%emt 0:1:46]} 11. cxd4 {[%emt 0:1:47]} exd4 {[%emt 0:0:6]} 12. Nxd4 {[%emt 0:0:18] [#]} Bd7 $146 {[%emt 0:11:43]} ({Predecessor:} 12... O-O 13. Qc2 Bd6 14. Bxc6 bxc6 15. h3 Bd7 16. Bb2 Rab8 17. Rfd1 Rfd8 18. Nf3 h6 19. Rxd6 Qxd6 {½-½ Vakhidov,J (2525)-Sjugirov,S (2664) Abu Dhabi op 23rd 2015 (4)} )13. Nf3 {[%emt 0:10:42]} (13. Bb2 {simplifies} Nxd4 14. Bxd7+ Qxd7 15. Qxd4 Qxd4 16. Bxd4 O-O 17. Rfb1 )Bf6 {[%emt 0:5:16] [#]} 14. Ba3 $1 {[%emt 0:13:0]} Bxa1 {[%emt 0:11:16]} 15. Qxa1 {[%emt 0:0:0]} O-O-O {[%emt 0:0:22]} 16. Rc1 {[%emt 0:0:9]} Kb8 {[%emt 0:6:25]} 17. Qxg7 {[%emt 0:1:39]} Rhg8 {[%emt 0:3:8]} 18. Qb2 {[%emt 0:16:55] [#]} (18. Qxf7 $2 {is the wrong capture.} Rxg2+ 19. Kf1 (19. Kxg2 $2 {too greedy.} Bh3+ {[%mdl 64] Discovered Attack} 20. Kxh3 Qxf7 $19 )Rxh2 $19 )Bg4 $1 {[%emt 0:11:18][%cal Yd7g4,Yg4d1,Yd1f3][%mdl 32]} 19. Ne1 {[%emt 0:12:11] [#]} ({Much worse is} 19. Bxc6 Qxc6 20. Nd4 Qd5 $17 )(19. Nd2 Qe5 )Rd1 $1 {[%emt 0:5:46]} 20. Rxd1 {[%emt 0:2:29]} Bxd1 {[%emt 0:0:3]} 21. Bf1 {[%emt 0:7:3]} Ne5 {[%emt 0:4:18]} (21... Bg4 $17 )22. h3 {[%emt 0:8:19] White is weak on the light squares} Bf3 {[%emt 0:10:32]} 23. Qd4 {[%emt 0:4:28] Bd6 is the strong threat.} Rd8 {[%emt 0:0:0] Prevents Bd6} (23... Ka8 {is interesting.} 24. Qd6 Qc3 25. Bb4 Qa1 )24. Qh4 {[%emt 0:0:48]} Bd5 {[%emt 0:0:0]} 25. Qxh7 {[%emt 0:4:17]} Bc4 {[%emt 0:0:30] aiming for ...Bxf1.} (25... Bxa2 $5 {[%cal Ra2c4]} 26. Qh4 Nc6 $15 )26. Bb2 {[%emt 0:3:20]} Bxf1 {[%emt 0:2:28]} 27. Kxf1 {[%emt 0:0:2]} Qc4+ {[%emt 0:1:1]} 28. Kg1 {[%emt 0:0:3]} Nc6 {[%emt 0:0:12]} 29. Nf3 $1 {[%emt 0:0:54]} Qxa2 {[%emt 0:1:43]} 30. Bf6 {[%emt 0:0:19]} Rd1+ {[%emt 0:0:52]} 31. Kh2 {[%emt 0:0:2]} a5 $36 {[%emt 0:0:23][%mdl 2048] next ...Qd5 is good for Black. Black is pushing.} 32. Nd4 {[%emt 0:3:26]} Qd5 {[%emt 0:2:10]} 33. Qc2 {[%emt 0:0:48]} Qd6+ {[%emt 0:1:34]} 34. f4 {[%emt 0:0:2]} Rxd4 {[%emt 0:0:10][%mdl 64] Deflection} 35. Bxd4 {[%emt 0:0:5]} Nxd4 {[%emt 0:0:4]} 36. exd4 {[%emt 0:0:6]} Qxf4+ $15 {[%emt 0:0:4][%mdl 4096] Endgame KQ-KQ} 37. g3 {[%emt 0:0:16]} Qxd4 {[%emt 0:0:16] Hoping for ...a4.} 38. h4 {[%emt 0:0:45]} a4 {[%emt 0:0:13] ...a3 would be deadly.} 39. Qa2 {[%emt 0:1:53] Prevents a3.} f5 {[%emt 0:3:7] Black is more active.} (39... Qb4 $17 {White must now prevent ...a3.} 40. h5 a3 )40. h5 {[%emt 0:0:37]} Qh8 {[%emt 0:0:34]} (40... f4 {keeps more tension.} 41. h6 fxg3+ 42. Kh3 Qd7+ )41. Qxa4 {[%emt 0:50:40] Strongly threatening Qf4+.} Qxh5+ {[%emt 0:50:7]} 42. Kg1 {[%emt 0:0:11]} (42. Qh4 $1 $11 Qe2+ 43. Kh3 )Qf3 {[%emt 0:0:0]} 43. Kh2 {[%emt 0:0:0] White is now going downhill.} ({Better is} 43. Qe8+ $15 Kc7 44. Kh2 )Qe2+ $17 {[%emt 0:0:0]} 44. Kg1 {[%emt 0:0:0]} Qe5 $1 {[%emt 0:0:0]} 45. Kf2 {[%emt 0:0:0] [#]} (45. Kh2 $142 )b5 $1 $19 {[%emt 0:1:45][%cal Yb7b5,Yb5b4,Yb4b3][%mdl 32]} 46. Qb4 {[%emt 0:0:0]} Kb7 {[%emt 0:0:0]} 47. g4 {[%emt 0:0:0] [#]} fxg4 {[%emt 0:0:0]} 48. Qxg4 {[%emt 0:0:0]} Kb6 {[%emt 0:0:0]} 49. Qg8 {[%emt 0:0:0]} b4 {[%emt 0:9:47]} 50. Kf3 {[%emt 0:0:0]} Kb5 {[%emt 0:0:0]} 51. Kg2 $2 {[%emt 0:0:0]} (51. Qf7 )Qe2+ {[%emt 0:0:0]} 52. Kg3 {[%emt 0:0:0]} (52. Kg1 $142 )Qe3+ {[%emt 0:0:0]} 53. Kg2 {[%emt 0:0:0]} b3 {[%emt 0:0:0] ( -> ...b2)} 54. Qb8+ {[%emt 0:0:0]} Kc4 {[%emt 0:0:0] Black mates.} 55. Qg8+ {[%emt 0:0:0]} Kc3 {[%emt 0:0:0]} 56. Qc8+ {[%emt 0:0:31]} Kd2 {[%emt 0:0:0]} 57. Qh8 {[%emt 0:0:0]} Kc2 {[%emt 0:0:0]} 58. Qc8+ {[%emt 0:0:0]} Kd1 {[%emt 0:0:0]} 59. Qh8 {[%emt 0:2:48]} Qd2+ {[%emt 0:0:0]} 60. Kg3 {[%emt 0:0:0]} b2 {[%emt 0:0:0] Weighted Error Value: White=0.43/Black=0.08 (flawless)} 0-1

[Event "85th Tata Steel Masters 2023"]
[White "Praggnanandhaa R"]
[Black "Giri,Anish"]
[Site "Wijk aan Zee"]
[Round "5.2"]
[Annotator "TA"]
[Result "1/2-1/2"]
[Date "2023.01.19"]
[WhiteElo "2684"]
[BlackElo "2764"]
[PlyCount "93"]
[TimeControl "60"]

{[%evp 9,93,12,9,22,16,12,16,4,18,19,15,-18,-29,-21,-12,-25,-18,-29,0,-9,-12,-13,-11,-17,-16,-10,-12,-10,-14,-14,-10,-23,-12,-32,0,0,0,0,0,0,0,0,0,0,18,14,16,22,22,20,20,27,25,30,56,50,56,47,54,0,0,0,0,0,0,0,0,0,0,0,0,0,0,0,0,0,0,0,0,0,0,0,0,0,0,0]} 1. e4 {[%emt 0:0:40]} e5 {[%emt 0:0:8]} 2. Nf3 {[%emt 0:0:4]} Nc6 {[%emt 0:0:4]} 3. Bc4 {[%emt 0:0:5]} Nf6 {[%emt 0:0:3]} 4. d3 {[%emt 0:0:6]} Bc5 {[%emt 0:0:3]} 5. Nc3 {[%emt 0:0:29]} a6 {[%emt 0:0:25]} 6. O-O {[%emt 0:0:24] C50: Hungarian Defence and Giuoco Pianissimo.} d6 {[%emt 0:0:6]} 7. a4 {[%emt 0:0:33]} h6 {[%emt 0:0:29]} 8. Be3 $1 {[%emt 0:0:49][%mdl 4] [#] outshines the older 8.h3.} Be6 $146 {[%emt 0:0:6]} ({Predecessor:} 8... O-O 9. Bxc5 dxc5 10. h3 Re8 11. Re1 b6 12. Nd5 Be6 13. Ne3 Qd7 14. Nd2 Nd4 15. Rf1 {1-0 Abdusattorov,N (2688)-Le,Q (2722) Biel blitz 55th 2022 (11)} )9. Bxe6 {[%emt 0:20:38]} fxe6 {[%emt 0:0:25]} 10. d4 {[%emt 0:3:9]} exd4 {[%emt 0:4:56]} 11. Nxd4 {[%emt 0:5:37]} Qd7 {[%emt 0:4:52]} 12. Nxc6 {[%emt 0:6:26]} Qxc6 {[%emt 0:2:52]} 13. Qd3 {[%emt 0:8:28][%cal Ye4e5]} O-O {[%emt 0:3:53]} 14. Bxc5 {[%emt 0:7:16]} Qxc5 {[%emt 0:1:46]} 15. Rad1 {[%emt 0:1:50]} Rf7 {[%emt 0:2:13]} 16. Qd4 {[%emt 0:1:33]} Qxd4 {[%emt 0:11:3]} 17. Rxd4 {[%emt 0:0:54]} Nd7 {[%emt 0:1:30]} 18. a5 {[%emt 0:4:6]} Ne5 {[%emt 0:0:2]} 19. Ne2 {[%emt 0:5:6]} g5 {[%emt 0:1:8]} 20. Nc1 {[%emt 0:29:46]} Nc6 {[%emt 0:32:29]} 21. Ra4 {[%emt 0:0:0]} Ne5 {[%emt 0:6:49]} 22. Nd3 {[%emt 0:2:45]} Nxd3 {[%emt 0:0:0]} 23. cxd3 $11 {[%emt 0:0:0][%mdl 4096] Endgame KRR-KRR} Raf8 {[%emt 0:2:40]} 24. Rb4 {[%emt 0:0:0]} c6 {[%emt 0:1:35]} 25. d4 {[%emt 0:4:16]} d5 {[%emt 0:4:59]} 26. exd5 {[%emt 0:0:0]} cxd5 {[%emt 0:2:59]} 27. Rb6 {[%emt 0:0:0]} Re7 {[%emt 0:0:9]} 28. Re1 {[%emt 0:0:0]} Kf7 {[%emt 0:6:10]} 29. Rc1 {[%emt 0:0:0]} Kg6 {[%emt 0:0:1]} 30. g3 {[%emt 0:0:0]} Rf3 {[%emt 0:0:52]} 31. Rd1 {[%emt 0:0:0] Wards off Rd3} Kf6 {[%emt 0:18:28]} 32. Kg2 {[%emt 0:1:50]} g4 {[%emt 0:0:5]} 33. h3 {[%emt 0:1:51]} h5 {[%emt 0:0:1]} 34. hxg4 {[%emt 0:2:10]} (34. h4 $14 )hxg4 {[%emt 0:0:1] The position is equal.} 35. Rh1 {[%emt 0:0:28]} Rd3 {[%emt 0:3:8]} 36. Rh6+ {[%emt 0:0:57]} Kg5 {[%emt 0:0:52]} 37. Rhxe6 {[%emt 0:0:23]} Rxe6 {[%emt 0:0:1]} 38. Rxe6 {[%emt 0:0:6]} Rxd4 {[%emt 0:0:1] KR-KR} 39. Rb6 {[%emt 0:0:15]} Ra4 {[%emt 0:1:12]} 40. b4 {[%emt 0:0:12]} d4 {[%emt 0:0:21]} 41. Rxb7 {[%emt 0:52:11]} Kf5 {[%emt 0:15:53] [#] Threatens to win with ...d3.} 42. Rb6 {[%emt 0:0:0]} d3 {[%emt 0:2:38] ...Ra1 would be deadly.} 43. Rxa6 {[%emt 0:0:0]} Rxb4 {[%emt 0:0:32] ( -> ...Rd4)} 44. Rd6 {[%emt 0:5:28] Prevents Rd4} Ke4 {[%emt 0:5:49]} 45. a6 {[%emt 0:0:0]} Ra4 {[%emt 0:0:4]} 46. Kf1 {[%emt 0:0:0]} Ra1+ {[%emt 0:0:3]} 47. Kg2 {[%emt 0:0:0] Weighted Error Value: White=0.04 (flawless) /Black=0.03 (flawless)} 1/2-1/2

[Event "85th Tata Steel Masters 2023"]
[White "Caruana,Fabiano"]
[Black "So,Wesley"]
[Site "Wijk aan Zee"]
[Round "5.3"]
[Annotator "TA"]
[Result "1/2-1/2"]
[Date "2023.01.19"]
[WhiteElo "2766"]
[BlackElo "2760"]
[PlyCount "82"]
[TimeControl "60"]

{[%evp 17,82,-11,-13,-11,0,0,0,0,-6,-14,-13,-22,-3,-32,-28,-25,-16,-31,-35,-33,-44,-66,-7,-11,-16,-10,-15,-18,0,0,0,0,0,0,0,0,0,0,0,-14,0,-20,0,0,0,0,0,0,0,0,0,0,0,0,0,0,0,0,0,0,0,0,0,0,0,0,0]} 1. e4 {[%emt 0:0:4]} e5 {[%emt 0:0:24]} 2. Nf3 {[%emt 0:0:6]} Nc6 {[%emt 0:0:5]} 3. d4 {[%emt 0:0:4]} exd4 {[%emt 0:0:23]} 4. Nxd4 {[%emt 0:0:7]} Nf6 {[%emt 0:0:5][%cal Yg8f6,Yf6d5,Yd5b4][%mdl 32]} 5. Nxc6 {[%emt 0:0:10]} bxc6 {[%emt 0:0:6]} 6. e5 {[%emt 0:0:12]} Qe7 {[%emt 0:0:6]} 7. Qe2 {[%emt 0:0:5]} Nd5 {[%emt 0:0:4]} 8. c4 {[%emt 0:0:11]} Ba6 {[%emt 0:9:3]} 9. b3 {[%emt 0:0:21]} g6 {[%emt 0:0:4]} 10. Ba3 $1 {[%emt 0:0:10][%mdl 4] is currently scoring better than 10.f4. C45: Scotch Game.} Nb4 {[%emt 0:5:51] White should prevent ...d5.} 11. Bb2 $1 {[%emt 0:0:15][%cal Ye5e6]} Bg7 {[%emt 0:0:5]} 12. a3 {[%emt 0:0:7]} Nd5 {[%emt 0:0:3]} 13. Nd2 {[%emt 0:0:8]} O-O {[%emt 0:0:6]} 14. O-O-O $1 {[%emt 0:0:16]} Rfe8 {[%emt 0:6:40] [#]} 15. Re1 $146 {[%emt 0:1:7][%cal Yd1e1,Ye1e4,Ye4h4][%mdl 32]} (15. Qf3 $5 {[%cal Rc4d5]} Nb6 16. Ne4 $11 )({Predecessor:} 15. Qf3 Nb6 16. Kc2 Rab8 17. h4 Na4 18. Bd4 Nc5 19. Re1 d5 20. cxd5 Bxf1 21. Rhxf1 cxd5 22. Qxd5 {0-1 Xiong,J (2690)-So,W (2773) Chess.com Rapid Winners 2022 (2.1)} )Nb6 {[%emt 0:11:32]} 16. h4 {[%emt 0:1:3]} d5 {[%emt 0:0:18][%cal Yd7d5,Yd5c4][%mdl 32]} 17. h5 {[%emt 0:6:15]} dxc4 {[%emt 0:6:26][%cal Yc4c3]} 18. hxg6 {[%emt 0:0:0]} hxg6 {[%emt 0:0:22][%cal Yc4c3] And now ...c3! would win.} 19. Qf3 {[%emt 0:26:56]} Rab8 {[%emt 0:0:30]} (19... Rad8 $15 )20. Re4 $1 $11 {[%emt 0:6:40] The position is equal.} (20. Qh3 Bc8 21. Qh7+ (21. e6 $2 Bxb2+ {[%mdl 64] Remove Defender} 22. Kxb2 Qf6+ 23. Kc1 Qg7 $19 )Kf8 22. Nxc4 Nd5 $17 )Bc8 {[%emt 0:4:1] [#] ...cxb3 is the strong threat.} 21. Nxc4 {[%emt 0:3:11]} (21. bxc4 $2 Na4 22. Bd4 Bf5 $19 )Bf5 {[%emt 0:4:28]} 22. Reh4 {[%emt 0:2:0] Hoping for Qf4.} Nxc4 {[%emt 0:29:41]} 23. Bxc4 {[%emt 0:0:20]} Qg5+ {[%emt 0:0:42]} (23... Bxe5 $2 24. Rh8+ (24. Qxc6 $2 Qg5+ 25. f4 Bxf4+ 26. Rxf4 Qxf4+ $19 )Kg7 25. R1h7+ Kf6 26. Qxc6+ Be6 27. Qf3+ Bf5 28. Qe2 Bxb2+ 29. Qxb2+ Qe5 30. Rxf7+ Kg5 31. Qxe5 Rxe5 32. Rxb8 $18 )24. Qe3 {Dancing on a razor blade.} Qxe3+ {[%emt 0:0:51]} (24... Qxg2 $2 25. e6 (25. Qxa7 Qg5+ 26. Qe3 Qxe3+ 27. fxe3 Be6 $14 )f6 26. e7+ $18 )25. fxe3 {[%emt 0:0:29][%cal Ye5e6]} Be6 $1 {[%emt 0:7:37]} 26. Bxe6 {[%emt 0:0:0]} Rxe6 {[%emt 0:1:14]} 27. Kc2 {[%emt 0:0:0]} Rb5 {[%emt 0:11:58]} 28. Bd4 {[%emt 0:7:54]} (28. a4 $5 {[%cal Ra4b5]} Rd5 29. e4 $11 )a6 {[%emt 0:6:36]} 29. b4 {[%emt 0:5:36]} Rd5 {[%emt 0:17:24]} (29... a5 $5 )30. g4 {[%emt 0:5:1]} Kf8 {[%emt 0:0:44]} 31. Bc5+ {[%emt 0:3:19]} Kg8 {[%emt 0:0:0]} 32. Bd4 {[%emt 0:0:0]} Kf8 {[%emt 0:0:0]} 33. Bc5+ {[%emt 0:0:20]} Ke8 {[%emt 0:4:14]} 34. Rh7 {[%emt 0:4:56]} Bxe5 {[%emt 0:0:0]} 35. e4 {[%emt 0:0:6]} Rd8 {[%emt 0:0:0]} 36. Rf1 $36 {[%emt 0:1:8][%mdl 2048] Black is under pressure.} Rd7 {[%emt 0:0:0]} 37. g5 {[%emt 0:0:59]} Bd6 {[%emt 0:0:0]} 38. Bd4 {[%emt 0:6:9]} Be5 {[%emt 0:0:0] Repels Rh8+} ({Resist} 38... Rxe4 39. Bf6 Re2+ 40. Kb1 $16 )39. Bc5 {[%emt 0:0:0]} Bd6 {[%emt 0:0:0] White must now prevent ...Bxc5.} 40. Bd4 {[%emt 0:0:0] [#] Rh8+ would be deadly.} Be5 {[%emt 0:0:0] Wards off Rh8+} ({Don't take} 40... Rxe4 41. Bf6 Re2+ 42. Kb1 $16 )41. Bc5 {[%emt 0:49:48]} Bd6 {[%emt 0:0:2] Weighted Error Value: White=0.02 (flawless) /Black=0.06 (flawless)} 1/2-1/2

[Event "85th Tata Steel Masters 2023"]
[White "Erigaisi Arjun"]
[Black "Ding,Liren"]
[Site "Wijk aan Zee"]
[Round "5.4"]
[Annotator "TA"]
[Result "1/2-1/2"]
[Date "2023.01.19"]
[WhiteElo "2722"]
[BlackElo "2811"]
[PlyCount "74"]
[TimeControl "60"]

{[%evp 14,74,19,15,15,19,32,26,42,4,4,-32,-35,-18,-21,-19,41,-31,0,0,8,-62,0,-20,0,-7,0,0,43,49,48,48,34,35,89,83,84,50,90,0,0,0,0,-10,-13,-87,-73,-80,-94,-119,-25,-31,-27,-8,0,0,0,-9,0,0,0,-13,-20]} 1. e4 {[%emt 0:0:13]} e5 {[%emt 0:5:44]} 2. Nf3 {[%emt 0:0:8]} Nc6 {[%emt 0:0:15]} 3. Bc4 {[%emt 0:0:8]} Bc5 {[%emt 0:0:57]} 4. c3 {[%emt 0:0:8]} Nf6 {[%emt 0:0:4]} 5. d3 {[%emt 0:0:6]} d6 {[%emt 0:0:13]} 6. O-O {[%emt 0:0:8]} O-O {[%emt 0:0:31]} 7. Bg5 {[%emt 0:0:24]} h6 {[%emt 0:0:51]} 8. Bh4 {[%emt 0:0:7]} g5 {[%emt 0:0:11][%cal Yg7g5,Yg5g4][%mdl 32] The old main line. C54: Giuoco Piano: 4 c3 Nf6, main lines with 5 d4 and 5 d3.} 9. Bg3 {[%emt 0:0:6]} a5 {[%emt 0:0:6]} (9... g4 {with more complications.} 10. Nh4 Nh5 11. b4 Bb6 )10. Re1 {[%emt 0:0:46]} Ba7 {[%emt 0:0:41] White has an edge.} 11. Nbd2 {[%emt 0:0:44]} Nh7 {[%emt 0:3:33]} 12. d4 {[%emt 0:13:59][%cal Rd4e5] [#]} g4 $146 {[%emt 0:14:39]} ({Predecessor:} 12... h5 13. h3 h4 14. Bh2 g4 15. hxg4 Bxg4 16. Be2 Qf6 17. Nc4 exd4 18. e5 dxe5 19. Ncxe5 Bxf3 20. Bxf3 dxc3 {1-0 Erigaisi,A (2725)-Le,Q (2728) Julius Baer GenCup KO rapid 2022 (2.12)} )13. Nh4 {[%emt 0:0:0]} exd4 {[%emt 0:0:3]} 14. Rb1 {[%emt 0:0:0]} Ne5 {[%emt 0:9:36]} (14... Re8 $11 )15. Bb3 {[%emt 0:3:43]} (15. cxd4 $14 Bxd4 16. Nf5 Bxf5 17. exf5 )dxc3 {[%emt 0:17:11]} 16. bxc3 {[%emt 0:0:44]} h5 {[%emt 0:21:57][%cal Ya5a4]} 17. Nf5 {[%emt 0:14:1]} (17. Kh1 $11 )Ng6 {[%emt 0:0:0][%cal Ya5a4]} 18. h3 {[%emt 0:24:10] [#]} a4 $1 {[%emt 0:2:30]} 19. Bc4 {[%emt 0:14:1]} (19. Bxa4 $2 h4 20. Bxh4 Nxh4 $19 )d5 {[%emt 0:3:50]} 20. Bxd5 {[%emt 0:3:34]} Bxf5 {[%emt 0:0:0]} (20... c6 $5 {[%cal Rc6d5]} 21. hxg4 (21. Bc4 b5 $11 )hxg4 22. Nh6+ (22. Bc4 b5 $11 )Kg7 23. Nf5+ (23. Nxg4 $2 cxd5 24. exd5 Qxd5 $19 )Kg8 24. Nh6+ (24. Bc4 b5 $11 )Kg7 25. Nf5+ (25. Nxg4 $2 cxd5 26. e5 Bc5 $19 )Kg8 $11 )21. exf5 {[%emt 0:0:0]} Qxd5 {[%emt 0:0:0]} 22. fxg6 {[%emt 0:0:0]} fxg6 {[%emt 0:1:23]} 23. hxg4 {[%emt 0:24:1]} Nf6 {[%emt 0:11:3]} (23... Qxa2 $14 24. gxh5 (24. Rxb7 Bb6 $11 )Nf6 )24. Qc2 $1 $16 {[%emt 0:0:0]} Qf7 {[%emt 0:4:38]} 25. Rxb7 {[%emt 0:0:0]} Nxg4 {[%emt 0:0:59][%cal Ra7f2] [#]} 26. Nf3 {[%emt 0:0:21] Active counter play!} (26. Ne4 $1 $16 )Bb6 $11 {[%emt 0:2:30]} 27. c4 {[%emt 0:2:28] aiming for c5.} Ra5 {[%emt 0:2:35]} 28. Rb1 {[%emt 0:2:44] Strongly threatening R1xb6.} Qf6 {[%emt 0:5:51]} 29. Bxc7 {[%emt 0:1:30]} (29. Re1 $11 {keeps the balance.} )Bxf2+ $17 {[%emt 0:0:0]} 30. Kh1 {[%emt 0:0:5]} Rf5 {[%emt 0:2:10]} 31. Qe4 {[%emt 0:5:31] [#]} Rxf3 {[%emt 0:0:0]} ({Better is} 31... Bd4 $1 $17 {[%cal Yf6h4] ( -> ...Qh4+!)} 32. Bg3 (32. Nxd4 $2 Rf1+ {[%mdl 64] Back Rank} 33. Rxf1 Qxf1# )(32. Qxd4 $2 Qxd4 33. Rb8 Qxc4 $19 )Bf2 )32. Qd5+ $1 $11 {[%emt 0:0:0]} (32. Qxf3 $2 Qh4+ 33. Qh3 Be1 $19 )Rf7 {[%emt 0:0:0]} (32... Kh8 $5 {[%cal Rf6h4]} 33. Qxf3 Qh4+ 34. Qh3 Be1 35. Be5+ (35. Bb6 Rf1+ 36. Bg1 Rxg1+ {[%mdl 64] Back Rank} 37. Kxg1 Qf2+ 38. Kh1 Qf1# )Nxe5 $17 )33. Bd8 $1 $36 {[%emt 0:0:0][%mdl 2048] White is pushing.} (33. Qxf3 Qh4+ 34. Qh3 Be1 35. Rb8+ Kh7 )Qf4 {[%emt 0:0:0][%csl Gg4][%cal Rf4h2] The position is equal.} 34. Bc7 {[%emt 0:3:13] Dancing on a razor blade.} (34. Qxf3 $2 Qh2# )Qf6 {[%emt 0:1:43]} 35. Bd8 $1 {[%emt 0:0:0]} (35. Qxf3 {gets mated.} Qh4+ 36. Qh3 Be1 37. Rb8+ Kh7 )Qf4 {[%emt 0:1:1][%csl Gg4][%cal Rf4h2]} 36. Bc7 {[%emt 0:0:39]} (36. Qxf3 $2 Qh2# )Qf6 {[%emt 0:1:11]} 37. Bd8 $1 {[%emt 0:0:42]} (37. Qxf3 {is a self mate.} Qh4+ 38. Qh3 Be1 39. Rb8+ Kh7 )Rf5 {An interesting game.   Weighted Error Value: White=0.15 (very precise) /Black=0.14 (very precise)} ({Reject} 37... Qf4 $6 38. Bc7 $17 (38. Qxf3 $2 Qh2# ))1/2-1/2